fUST/lending_fUST_20260208
["ID","MTS","AMOUNT","RATE_DAILY","PERIOD"]
[404756100,1770511844555,-522.77130686,0.00052054,120]
[404756102,1770511844566,-526.63649013,0.00052054,120]
[404756104,1770511844575,-518.66139825,0.00052054,120]
[404756106,1770511844585,-570.78044428,0.00052054,120]
[404756108,1770511844594,-590.48405079,0.00052054,120]
[404756110,1770511844603,-568.72531298,0.00052054,120]
[404756112,1770511844613,-500.0,0.00052054,120]
[404756114,1770511844625,-500.0,0.00052054,120]
[404756116,1770511844634,-1968.71,0.00052054,120]
[404756118,1770511844644,-500.0,0.00052054,120]
[404756120,1770511844653,-589.80650329,0.00052054,120]
[404756122,1770511844663,-500.0,0.00052054,120]
[404756124,1770511844672,-987.2,0.00052054,120]
[404756126,1770511844681,-500.0,0.00052054,120]
[404756128,1770511844690,-500.0,0.00052054,120]
[404756130,1770511844700,-500.0,0.00052054,120]
[404756132,1770511844709,-500.0,0.00052054,120]
[404756134,1770511844720,-210.07576577,0.00052054,120]
[404756136,1770511844729,-500.0,0.00052054,120]
[404756138,1770511844738,-500.0,0.00052054,120]
[404756140,1770511844748,-516.87848743,0.00052054,120]
[404756142,1770511844757,-529.84946372,0.00052054,120]
[404756144,1770511844766,-500.0,0.00052054,120]
[404756146,1770511844776,-527.47735324,0.00052054,120]
[404756148,1770511844786,-500.0,0.00052054,120]
[404756150,1770511844795,-500.0,0.00052054,120]
[404756152,1770511844805,-532.54450733,0.00052054,120]
[404756154,1770511844815,-500.0,0.00052054,120]
[404756155,1770511844824,-500.0,0.00052054,120]
[404756158,1770511844834,-543.21664211,0.00052054,120]
[404756160,1770511844844,-370.52460569,0.00052054,120]
[404756161,1770511844855,-507.8276719,0.00052054,120]
[404756163,1770511844864,-500.0,0.00052054,120]
[404756165,1770511844876,-524.54681446,0.00052054,120]
[404756168,1770511844886,-5024.73,0.00052054,2]
[404756170,1770511844896,-500.0,0.00052054,120]
[404756172,1770511844905,-557.2965085,0.00052054,120]
[404756174,1770511844915,-500.0,0.00052054,120]
[404756176,1770511844924,-500.0,0.00052054,120]
[404756178,1770511844933,-610.95,0.00052054,120]
[404756180,1770511844943,-500.0,0.00052054,120]
[404756182,1770511844958,-500.0,0.00052054,120]
[404756184,1770511844968,-583.5848532,0.00052054,2]
[404756186,1770511844978,-520.0078866,0.00052054,120]
[404756188,1770511844988,-280.33977726,0.00052054,30]
[404756190,1770511844999,-500.0,0.00052054,120]
[404756192,1770511845010,-500.0,0.00052054,120]
[404756194,1770511845019,-500.0,0.00052054,120]
[404756196,1770511845031,-500.0,0.00052054,120]
[404756198,1770511845040,-517.47059008,0.00052054,120]
[404756200,1770511845050,-3239.562279,0.00052054,2]
[404756202,1770511845060,-500.0,0.00052054,120]
[404756204,1770511845069,-526.11657984,0.00052054,120]
[404756206,1770511845079,-500.0,0.00052054,14]
[404756208,1770511845088,-553.28408968,0.00052054,120]
[404756210,1770511845098,-2165.11,0.00052054,30]
[404756212,1770511845107,-520.26239895,0.00052054,120]
[404756214,1770511845117,-500.0,0.00052054,120]
[404756216,1770511845127,-500.0,0.00052054,120]
[404756218,1770511845136,-532.43768077,0.00052054,120]
[404756220,1770511845145,-500.0,0.00052054,120]
[404756222,1770511845155,-517.02044567,0.00052054,120]
[404756224,1770511845165,-275.70078329,0.00052054,120]
[404756226,1770511845174,-556.21562044,0.00052054,120]
[404756228,1770511845183,-500.0,0.00052054,120]
[404756230,1770511845194,-500.0,0.00052054,120]
[404756232,1770511845203,-668.68,0.00052054,120]
[404756234,1770511845212,-1628.89,0.00052054,120]
[404756236,1770511845221,-500.0,0.00052054,120]
[404756238,1770511845231,-363.16918133,0.00052054,120]
[404756240,1770511845241,-500.0,0.00052054,120]
[404756242,1770511845249,-500.0,0.00052054,120]
[404756244,1770511845259,-152.34834924,0.00052054,120]
[404756246,1770511845268,-471.43439556,0.00052054,120]
[404756248,1770511845278,-4996.89,0.00052054,21]
[404756250,1770511845288,-632.12908179,0.00052054,120]
[404756252,1770511845297,-500.0,0.00052054,120]
[404756254,1770511845307,-710.67,0.00052054,120]
[404756256,1770511845316,-514.16848,0.00052054,120]
[404756258,1770511845326,-334.9216991,0.00052054,120]
[404756260,1770511845335,-500.0,0.00052054,120]
[404756262,1770511845344,-263.37965996,0.00052054,120]
[404756264,1770511845354,-500.0,0.00052054,120]
[404756266,1770511845363,-6585.5,0.00052054,120]
[404756268,1770511845374,-500.0,0.00052054,120]
[404756270,1770511845383,-500.0,0.00052054,120]
[404756272,1770511845396,-500.0,0.00052054,120]
[404756274,1770511845405,-500.0,0.00052054,120]
[404756276,1770511845414,-500.0,0.00052054,120]
[404756279,1770511845424,-500.0,0.00052054,120]
[404756281,1770511845433,-510.35594328,0.00052054,120]
[404756282,1770511845442,-500.0,0.00052054,120]
[404756285,1770511845453,-7930.79,0.00052054,120]
[404756287,1770511845462,-14827.86,0.00052054,90]
[404756288,1770511845472,-500.0,0.00052054,120]
[404756290,1770511845482,-791.45,0.00052054,120]
[404756293,1770511845492,-328.70806214,0.00052054,120]
[404756294,1770511845501,-500.0,0.00052054,120]
[404756296,1770511845510,-162.91660857,0.00052054,120]
[404756298,1770511845519,-464.74969957,0.00052054,120]
[404756300,1770511845530,-505.68,0.00052054,120]
[404756303,1770511845540,-195.28859659,0.00052054,120]
[404756305,1770511845549,-576.7,0.00052054,120]
[404756306,1770511845558,-500.0,0.00052054,120]
[404756309,1770511845568,-500.0,0.00052054,7]
[404756311,1770511845578,-500.0,0.00052054,120]
[404756312,1770511845588,-500.0,0.00052054,120]
[404756314,1770511845597,-500.0,0.00052054,120]
[404756316,1770511845607,-510.9855087,0.00052054,120]
[404756318,1770511845616,-500.0,0.00052054,120]
[404756320,1770511845628,-560.64674822,0.00052054,120]
[404756322,1770511845638,-500.0,0.00052054,120]
[404756324,1770511845647,-500.0,0.00052054,120]
[404756326,1770511845656,-191.79500725,0.00052054,120]
[404756329,1770511845666,-500.0,0.00052054,120]
[404756330,1770511845676,-500.0,0.00052054,120]
[404756332,1770511845686,-500.0,0.00052054,120]
[404756335,1770511845697,-500.0,0.00052054,120]
[404756337,1770511845707,-500.0,0.00052054,120]
[404756339,1770511845717,-500.0,0.00052054,120]
[404756341,1770511845727,-500.0,0.00052054,120]
[404756343,1770511845736,-500.0,0.00052054,120]
[404756345,1770511845745,-500.0,0.00052054,120]
[404756347,1770511845754,-21681.6964333,0.00052054,2]
[404756349,1770511845764,-500.0,0.00052054,120]
[404756351,1770511845773,-500.0,0.00052054,120]
[404756353,1770511845783,-8170.15,0.00052054,120]
[404756355,1770511845792,-500.0,0.00052054,120]
[404756357,1770511845802,-500.0,0.00052054,120]
[404756359,1770511845811,-500.0,0.00052054,120]
[404756361,1770511845821,-201.72240564,0.00052054,120]
[404756363,1770511845830,-500.0,0.00052054,120]
[404756365,1770511845839,-500.0,0.00052054,120]
[404756366,1770511845848,-500.0,0.00052054,120]
[404756369,1770511845858,-500.0,0.00052054,120]
[404756371,1770511845868,-500.0,0.00052054,120]
[404756373,1770511845882,-500.0,0.00052054,120]
[404756375,1770511845891,-500.0,0.00052054,120]
[404756377,1770511845901,-500.0,0.00052054,120]
[404756379,1770511845910,-500.0,0.00052054,120]
[404756381,1770511845919,-500.0,0.00052054,120]
[404756383,1770511845929,-500.0,0.00052054,120]
[404756385,1770511845938,-276.57814498,0.00052054,120]
[404756387,1770511845948,-500.0,0.00052054,120]
[404756389,1770511845960,-500.0,0.00052054,120]
[404756391,1770511845969,-500.0,0.00052054,120]
[404756393,1770511845978,-506.41323391,0.00052054,120]
[404756394,1770511845987,-250.99190123,0.00052054,120]
[404756397,1770511845998,-523.03302165,0.00052054,120]
[404756398,1770511846008,-500.0,0.00052054,120]
[404756399,1770511846018,-500.0,0.00052054,120]
[404756400,1770511846027,-500.0,0.00052054,120]
[404756401,1770511846038,-500.0,0.00052054,120]
[404756403,1770511846047,-544.08539475,0.00052054,120]
[404756405,1770511846057,-500.0,0.00052054,120]
[404756407,1770511846066,-572.63637775,0.00052054,120]
[404756409,1770511846075,-545.08413678,0.00052054,120]
[404756412,1770511846084,-358.66680562,0.00052054,120]
[404756414,1770511846093,-500.0,0.00052054,120]
[404756416,1770511846102,-1609.0,0.00052054,120]
[404756418,1770511846111,-533.76755411,0.00052054,60]
[404756420,1770511846121,-2121.42,0.00052054,120]
[404756422,1770511846130,-520.55082213,0.00052054,120]
[404756424,1770511846141,-537.55027612,0.00052054,120]
[404756426,1770511846150,-856.79,0.00052054,30]
[404756428,1770511846160,-500.0,0.00052054,8]
[404756430,1770511846169,-589.99172982,0.00052054,120]
[404756432,1770511846179,-46573.6096814,0.00052054,20]
[404756480,1770511846628,-500.0,0.00019997,2]
[404756482,1770511846637,-500.0,0.00019997,2]
[404756484,1770511846646,-447.95524482,0.00019997,2]
[404756486,1770511846655,-2000.0,0.00040203,2]
[404756488,1770511846664,-2074.0,0.00040203,2]
[404756490,1770511846673,-872.49793686,0.00040203,2]
[404756492,1770511846687,-1000.0,0.00052053,120]
[404756494,1770511846696,-1000.0,0.00052053,120]
[404756496,1770511846705,-1000.0,0.00052053,120]
[404756498,1770511846714,-28631.1503186,0.00052054,20]
[404756500,1770511846722,-500.0,0.00052054,120]
[404756502,1770511846731,-252.29972249,0.00052054,120]
[404756504,1770511846740,-500.0,0.00052054,120]
[404756506,1770511846749,-554.03403693,0.00052054,120]
[404756507,1770511846758,-1198.51,0.00052054,120]
[404756509,1770511846768,-234.82840158,0.00052054,120]
[404756511,1770511846777,-610.38416432,0.00052054,120]
[404756513,1770511846787,-516.42502136,0.00052054,120]
[404756515,1770511846796,-500.0,0.00052054,2]
[404756517,1770511846805,-240.86783091,0.00052054,120]
[404756519,1770511846814,-500.0,0.00052054,120]
[404756521,1770511846824,-599.53474446,0.00052054,120]
[404756523,1770511846833,-500.0,0.00052054,120]
[404756525,1770511846842,-500.0,0.00052054,120]
[404756527,1770511846852,-640.52,0.00052054,120]
[404756529,1770511846861,-500.0,0.00052054,120]
[404756531,1770511846871,-500.0,0.00052054,120]
[404756533,1770511846880,-500.0,0.00052054,120]
[404756535,1770511846890,-218.12576143,0.00052054,120]
[404756537,1770511846898,-1119.44,0.00052054,120]
[404756539,1770511846907,-1119.44,0.00052099,120]
[404756541,1770511846916,-160.06,0.000521,14]
[404756543,1770511846925,-1119.44,0.00052145,120]
[404756545,1770511846934,-1311.62852839,0.00052177,28]
[404756547,1770511846944,-1119.44,0.0005219,120]
[404756549,1770511846955,-549.34,0.00052191,39]
[404756551,1770511846965,-1119.44,0.00052235,120]
[404756552,1770511846974,-1119.44,0.0005228,120]
[404756554,1770511846983,-17457.39495044,0.00052318,4]
[404756583,1770511847233,-303.10001603,0.000189,2]
[404756585,1770511847242,-303.10001603,0.00019089,2]
[404756587,1770511847252,-303.10001603,0.00019278,2]
[404756589,1770511847261,-303.10001603,0.00019467,2]
[404756591,1770511847270,-303.10001603,0.00019656,2]
[404756593,1770511847279,-20.44991985,0.0002489,10]
[404756595,1770511847289,-1090.45008015,0.0002489,10]
[404756597,1770511847299,-176.85,0.0004,60]
[404756599,1770511847308,-176.85,0.00042,60]
[404756601,1770511847318,-176.85,0.000441,60]
[404756603,1770511847328,-1000.0,0.00052053,120]
[404756605,1770511847337,-414.72891565,0.00052054,120]
[404756620,1770511847468,-797.0,0.00052054,120]
[404756622,1770511847478,-19406.58808018,0.00052318,4]
[404756624,1770511847489,-359.0,0.00052318,4]
[404756627,1770511847503,-1480.49022964,0.00052318,4]
[404756629,1770511847514,-1798.98479844,0.00052318,4]
[404756631,1770511847525,-1672.68758275,0.00052318,4]
[404756637,1770511847576,-2771.74491002,0.00052318,4]
[404758929,1770512481771,-639.11842563,0.0001638,2]
[404758930,1770512481809,-576.55473206,0.00016381,2]
[404758931,1770512510950,-170.92815199,0.0001648,2]
[404758932,1770512510978,-297.26212165,0.0001648,2]
[404758933,1770512540217,-170.92815199,0.0001648,2]
[404758934,1770512673337,5000.0,0.000159,2]
[404758935,1770512695056,1013.12834329,0.000159,2]
[404758936,1770512826987,479.93579163,0.00013699,2]
[404758937,1770512880040,294.09,9.99e-05,7]
[404758966,1770513031658,-361.7274484,0.00016151,2]
[404758968,1770513031667,-152.00267521,0.00016379,2]
[404758970,1770513031676,-75.00961557,0.00020232,2]
[404759004,1770513037816,-197.57419688,0.00020232,2]
[404759006,1770513037826,-490.65086242,0.00022185,2]
[404759008,1770513037835,-254.8399407,0.00024138,2]
[404759112,1770513039955,-575.1600593,0.00024138,2]
[404759114,1770513039966,-586.5820586,0.00024139,2]
[404759486,1770513043960,-285.68614125,0.00024139,2]
[404759488,1770513043971,-741.63626124,0.00028084,2]
[404759505,1770513044097,-746.0,0.0003069,30]
[404759508,1770513044143,-178.988777,0.00030976,2]
[404759510,1770513044153,-178.988777,0.0003228,2]
[404759512,1770513044163,-171.072703,0.00032303,2]
[404759514,1770513044173,-162.58922283,0.000332,117]
[404759516,1770513044182,-178.988777,0.00033584,2]
[404759518,1770513044196,-583.74492274,0.00033658,2]
[404759520,1770513044213,-327.73319155,0.00033756,7]
[404759522,1770513044223,-500.0,0.00033756,7]
[404759524,1770513044231,-500.0,0.00033756,7]
[404759526,1770513044242,-500.0,0.00033756,7]
[404759528,1770513044251,-276.4409485,0.00033756,7]
[404759530,1770513044261,-500.0,0.00033756,7]
[404759534,1770513044281,-173.63016636,0.00033756,7]
[404759536,1770513044291,-500.0,0.00033756,7]
[404759538,1770513044301,-500.0,0.00033756,7]
[404759540,1770513044311,-500.0,0.00033756,7]
[404759542,1770513044323,-220.66304598,0.00033756,7]
[404759544,1770513044333,-500.0,0.00033756,7]
[404759546,1770513044343,-500.0,0.00033756,7]
[404759548,1770513044353,-265.29222994,0.00033756,7]
[404759551,1770513044367,-234.70777006,0.00033756,7]
[404759553,1770513044377,-278.46310938,0.00033756,7]
[404759676,1770513045732,-658.32089484,0.00033756,30]
[404759678,1770513045744,-25.67910516,0.00033756,30]
[404759680,1770513045754,-221.53689062,0.00033756,7]
[404759682,1770513045763,-500.0,0.00033756,7]
[404759684,1770513045773,-500.0,0.00033756,7]
[404759686,1770513045783,-500.0,0.00033756,7]
[404759688,1770513045792,-600.0,0.00033756,7]
[404759690,1770513045802,-500.0,0.00033756,7]
[404759692,1770513045812,-500.0,0.00033756,7]
[404759694,1770513045821,-500.0,0.00033756,7]
[404759696,1770513045831,-500.0,0.00033756,7]
[404759698,1770513045840,-500.0,0.00033756,7]
[404759700,1770513045851,-500.0,0.00033756,7]
[404759702,1770513045862,-34.16083119,0.00033756,7]
[404759982,1770513078266,389.3901587,0.00013273,2]
[404759983,1770513085966,200.0,0.00013699,2]
[404759985,1770513187078,500.0,0.00013273,2]
[404759986,1770513187135,638.83428062,0.00013821,2]
[404759987,1770513247096,500.0,0.00013699,2]
[404759989,1770513311434,502.44560844,0.00013273,2]
[404759990,1770513313306,500.0,0.00013273,2]
[404759991,1770513313427,407.82856512,0.00014368,2]
[404759992,1770513314052,1000.0,0.00013821,2]
[404759993,1770513316213,500.50079033,0.00013273,2]
[404759994,1770513319274,500.0,0.00013699,2]
[404759995,1770513320057,500.0,0.00013273,2]
[404759996,1770513320100,1000.0,0.00013821,2]
[404759997,1770513320156,1500.0,0.00014368,2]
[404759998,1770513320216,1119.02743993,0.00014916,2]
[404759999,1770513322670,500.98262723,0.00013273,2]
[404760000,1770513323139,302.80573112,0.00013673,2]
[404760001,1770513326554,500.36567439,0.00013699,2]
[404760002,1770513326639,924.74318778,0.00013821,2]
[404760003,1770513326701,500.0,0.00013273,2]
[404760004,1770513329021,500.0,0.00013699,2]
[404760005,1770513329632,502.26914519,0.00013699,2]
[404760006,1770513329660,501.63013071,0.00013699,2]
[404760007,1770513330456,502.28732278,0.00013273,2]
[404760008,1770513330905,500.0,0.00013699,2]
[404760009,1770513331576,506.56547141,0.00014247,2]
[404760010,1770513331643,500.0,0.00013699,2]
[404760011,1770513333960,500.0,0.00013699,2]
[404760012,1770513366728,500.0,0.00013273,2]
[404760013,1770513366781,500.0,0.00013821,2]
[404760014,1770513367082,500.0,0.00013273,2]
[404760015,1770513367137,1079.86275782,0.00013821,2]
[404760016,1770513369109,327.06050015,0.00013273,2]
[404760017,1770513371160,500.0,0.00013699,2]
[404760018,1770513371216,273.50012722,0.00014247,2]
[404760019,1770513378295,500.0,0.00013699,2]
[404760024,1770513428871,485.91457631,0.00013699,2]
[404760025,1770513429026,511.4313208,0.00014247,2]
[404760026,1770513429072,500.0,0.00013699,2]
[404760027,1770513430017,1000.0,0.00013821,2]
[404760028,1770513430045,500.0,0.00013273,2]
[404760029,1770513430076,581.59493724,0.00013821,2]
[404760030,1770513430103,1114.23698086,0.00014368,2]
[404760031,1770513430133,500.0,0.00013273,2]
[404760032,1770513431850,501.17154116,0.00013699,2]
[404760033,1770513432775,500.0,0.00013699,2]
[404760034,1770513433578,500.0,0.00013699,2]
[404760035,1770513436558,500.0,0.00013699,2]
[404760036,1770513442352,500.20077682,0.00013699,2]
[404760037,1770513446378,500.0,0.00013699,2]
[404760038,1770513487353,1000.0,0.00013821,2]
[404760039,1770513487422,500.0,0.00013273,2]
[404760040,1770513487471,301.01189933,0.00014368,2]
[404760041,1770513543432,500.0,0.00013273,2]
[404760042,1770513543486,504.02096121,0.00013821,2]
[404760043,1770513605162,500.0,0.00013273,2]
[404760044,1770513605189,1001.60290672,0.00013821,2]
[404760045,1770513606612,500.40621732,0.00013273,2]
[404760046,1770513607645,500.32955942,0.00013699,2]
[404760047,1770513663506,500.0,0.00013273,2]
[404760048,1770513663544,1128.35329492,0.00013821,2]
[404760049,1770513663598,500.0,0.00013699,2]
[404760050,1770513663645,500.0,0.00013699,2]
[404760051,1770513663671,964.22668993,0.00014247,2]
[404760052,1770513663701,536.27225008,0.00014247,2]
[404760055,1770513664578,500.0,0.00013273,2]
[404760056,1770513664631,1029.99711063,0.00013821,2]
[404760057,1770513667891,500.0,0.00013699,2]
[404760058,1770513668060,500.57591964,0.00013699,2]
[404760059,1770513668541,342.65443353,0.00013699,2]
[404760060,1770513726449,500.0,0.00013699,2]
[404760061,1770513726503,749.20875564,0.00014247,2]
[404760062,1770513784063,500.0,0.00013273,2]
[404760063,1770513784128,546.01161809,0.00013821,2]
[404760064,1770513784153,500.0,0.00013699,2]
[404760065,1770513784194,440.88279015,0.00014795,2]
[404760066,1770513784230,1000.0,0.00014247,2]
[404760071,1770513902950,500.0,0.00013699,2]
[404760072,1770513903010,1000.0,0.00014247,2]
[404760073,1770513903037,500.0,0.00013699,2]
[404760074,1770513903072,1139.91842979,0.00014795,2]
[404760075,1770513903099,558.05337318,0.00014247,2]
[404760076,1770513903130,500.0,0.00013699,2]
[404760077,1770513903192,353.75609699,0.00014247,2]
[404760078,1770513905967,621.09351282,0.00013699,2]
[404760079,1770513910671,500.0,0.00013699,2]
[404760080,1770513910699,226.3087799,0.00014247,2]
[404760081,1770513915947,500.55069716,0.00013699,2]
[404760086,1770513966118,192.69403245,0.00013699,2]
[404760087,1770513967122,500.80530664,0.00013273,2]
[404760089,1770513975283,500.0,0.00013699,2]
[404760090,1770513975338,1000.0,0.00014247,2]
[404760091,1770513975390,322.76975536,0.00014795,2]
[404760092,1770514019652,5000.0,0.000159,2]
[404760093,1770514022754,2392.19394491,0.0003,120]
[404760094,1770514041087,5000.0,0.000159,2]
[404760096,1770514062886,2015.11508236,0.000159,2]
[404760097,1770514085056,500.48173514,0.00013699,2]
[404760101,1770514143229,500.0,0.00013273,2]
[404760102,1770514143274,1003.70777355,0.00013821,2]
[404760103,1770514161122,5000.0,0.000159,2]
[404760104,1770514177418,5000.0,0.000159,2]
[404760105,1770514204048,653.4,0.0001,2]
[404760106,1770514204614,653.4,0.000101,2]
[404760107,1770514205192,653.4,0.000102,2]
[404760108,1770514205747,653.4,0.000103,2]
[404760109,1770514206320,653.4,0.000104,2]
[404760110,1770514207045,653.4,0.000105,2]
[404760111,1770514207490,653.4,0.000106,2]
[404760112,1770514208065,653.4,0.000107,2]
[404760113,1770514208429,500.0,0.00013699,2]
[404760114,1770514208840,653.4,0.000108,2]
[404760115,1770514209237,653.4,0.000109,2]
[404760116,1770514209798,653.4,0.00011,2]
[404760117,1770514210388,653.4,0.000111,2]
[404760118,1770514210971,653.4,0.000112,2]
[404760119,1770514211437,653.4,0.000113,2]
[404760120,1770514212117,653.4,0.000114,2]
[404760121,1770514212715,653.4,0.000116,2]
[404760122,1770514213277,653.4,0.000117,2]
[404760123,1770514213829,653.4,0.000118,2]
[404760124,1770514214466,653.4,0.000119,2]
[404760125,1770514214945,653.4,0.00012,2]
[404760126,1770514215015,192.11712597,0.000159,2]
[404760127,1770514215586,653.4,0.000121,2]
[404760128,1770514216073,653.4,0.000122,2]
[404760129,1770514216695,653.4,0.000123,2]
[404760130,1770514217209,653.4,0.000124,2]
[404760131,1770514217781,653.4,0.000125,2]
[404760132,1770514218247,653.4,0.000126,2]
[404760133,1770514218847,653.4,0.000127,2]
[404760134,1770514219409,653.4,0.000128,2]
[404760135,1770514219985,653.4,0.000129,2]
[404760136,1770514220552,653.4,0.00013,2]
[404760137,1770514221145,653.4,0.000131,2]
[404760138,1770514221713,653.4,0.000132,2]
[404760139,1770514222334,653.4,0.000133,2]
[404760140,1770514222799,653.4,0.000134,2]
[404760141,1770514223356,653.4,0.000135,2]
[404760142,1770514223919,653.4,0.000136,2]
[404760143,1770514224479,653.4,0.000137,2]
[404760144,1770514225125,653.4,0.000138,2]
[404760145,1770514225678,653.4,0.000139,2]
[404760146,1770514226229,653.4,0.00014,2]
[404760148,1770514226701,653.4,0.000141,2]
[404760149,1770514227426,653.4,0.000142,2]
[404760150,1770514227921,653.4,0.000143,2]
[404760151,1770514228573,653.4,0.000144,2]
[404760152,1770514229140,653.4,0.000146,2]
[404760153,1770514229701,653.4,0.000147,2]
[404760154,1770514230263,653.4,0.000148,2]
[404760155,1770514230840,653.4,0.000149,2]
[404760156,1770514231383,653.4,0.00015,2]
[404760163,1770514231958,-1357.78006399,0.00016108,2]
[404760165,1770514233412,653.24,0.0001,2]
[404760317,1770514241550,-3642.21993601,0.00016108,2]
[404760318,1770514241560,-300.0,0.00016272,2]
[404760321,1770514241571,-300.0,0.00016272,2]
[404760323,1770514241581,-300.0,0.00016272,2]
[404760325,1770514241591,-1200.0,0.00016272,2]
[404760326,1770514241601,-300.0,0.00016272,2]
[404760328,1770514241612,-7757.07727176,0.00016276,2]
[404760331,1770514241623,-150.0,0.0001635,2]
[404760332,1770514241633,-534.92809701,0.00016497,2]
[404760335,1770514241643,-500.0,0.00016999,2]
[404760336,1770514241654,-500.0,0.00016999,2]
[404760339,1770514241664,-500.0,0.00016999,2]
[404760341,1770514241674,-500.0,0.00016999,2]
[404760342,1770514241686,-500.0,0.00016999,2]
[404760344,1770514241697,-500.0,0.00016999,2]
[404760347,1770514241706,-500.0,0.00016999,2]
[404760348,1770514241716,-500.0,0.00016999,2]
[404760351,1770514241727,-500.0,0.00016999,2]
[404760352,1770514241736,-500.0,0.00016999,2]
[404760354,1770514241747,-500.0,0.00016999,2]
[404760372,1770514241892,-500.0,0.00016999,2]
[404760374,1770514241901,-500.0,0.00016999,2]
[404760376,1770514241910,-500.0,0.00016999,2]
[404760378,1770514241919,-500.0,0.00016999,2]
[404760380,1770514241928,-500.0,0.00016999,2]
[404760381,1770514241939,-500.0,0.00016999,2]
[404760383,1770514241950,-500.0,0.00016999,2]
[404760385,1770514241959,-500.0,0.00016999,2]
[404760387,1770514241967,-500.0,0.00016999,2]
[404760389,1770514241978,-500.0,0.00016999,2]
[404760391,1770514241988,-500.0,0.00016999,2]
[404760393,1770514241997,-573.47530329,0.00016999,2]
[404760395,1770514242007,-500.0,0.00016999,2]
[404760396,1770514242021,-500.0,0.00016999,2]
[404760398,1770514242031,-500.0,0.00016999,2]
[404760400,1770514242041,-500.0,0.00016999,2]
[404760402,1770514242050,-500.0,0.00016999,2]
[404760404,1770514242059,-500.0,0.00016999,2]
[404760406,1770514242068,-500.0,0.00016999,2]
[404760408,1770514242077,-500.0,0.00016999,2]
[404760410,1770514242086,-500.0,0.00016999,2]
[404760412,1770514242095,-500.0,0.00016999,2]
[404760414,1770514242104,-500.0,0.00016999,2]
[404760416,1770514242113,-500.0,0.00016999,2]
[404760418,1770514242122,-500.0,0.00016999,2]
[404760420,1770514242132,-500.0,0.00016999,2]
[404760422,1770514242141,-500.0,0.00016999,2]
[404760424,1770514242151,-500.0,0.00016999,2]
[404760426,1770514242160,-500.0,0.00016999,2]
[404760428,1770514242169,-500.0,0.00016999,2]
[404760430,1770514242179,-500.0,0.00016999,2]
[404760432,1770514242188,-500.0,0.00016999,2]
[404760434,1770514242198,-500.0,0.00016999,2]
[404760436,1770514242208,-500.0,0.00016999,2]
[404760438,1770514242217,-500.0,0.00016999,2]
[404760440,1770514242226,-500.0,0.00016999,2]
[404760442,1770514242236,-500.0,0.00016999,2]
[404760444,1770514242245,-500.0,0.00016999,2]
[404760446,1770514242255,-500.0,0.00016999,2]
[404760448,1770514242264,-500.0,0.00016999,2]
[404760450,1770514242273,-500.0,0.00016999,2]
[404760452,1770514242284,-500.0,0.00016999,2]
[404760454,1770514242294,-500.0,0.00016999,2]